bitfinex/quotes_BTCUSD_20250406
["timestamp","ask_amount","ask_price","bid_price","bid_amount"]
[1743965728109,0.252511,79205.0,79178.0,0.012629]
[1743965728312,0.252536,79197.0,79178.0,2.25349561]
[1743965728645,0.012625,79202.0,79191.0,0.01454085]
[1743965728862,0.27045478,79202.0,79201.0,0.13552897]
[1743965729070,0.28307978,79202.0,79201.0,0.29957655]
[1743965729272,0.28307978,79202.0,79201.0,0.32272646]
[1743965729486,0.28307978,79202.0,79201.0,0.02314991]
[1743965729690,0.28307978,79202.0,79189.0,0.01454085]
[1743965729691,0.265171,79194.0,79192.0,0.02314991]
[1743965729896,0.445171,79194.0,79193.0,0.13744382]
[1743965730100,0.012627,79193.0,79192.0,0.02314991]
[1743965730316,0.282627,79193.0,79192.0,0.12312181]
[1743965730574,0.282627,79193.0,79192.0,0.05286546]
[1743965730701,0.39290297,79193.0,79166.0,0.06216083]
[1743965730914,0.01263,79174.0,79167.0,0.12290297]
[1743965731182,0.21,79174.0,79169.0,0.01454085]
[1743965731329,0.22263,79174.0,79171.0,0.01454085]
[1743965731537,0.22263,79174.0,79172.0,0.13744382]
[1743965731538,0.265241,79173.0,79172.0,0.13744382]
[1743965731743,0.23,79173.0,79172.0,0.13744382]
[1743965731968,0.23,79173.0,79172.0,0.23741572]
[1743965732172,0.24263,79173.0,79172.0,0.0999719]
[1743965732393,0.495244,79173.0,79166.0,0.06216083]
[1743965732589,0.012631,79168.0,79166.0,0.16226937]
[1743965732788,0.265261,79167.0,79166.0,0.16226937]
[1743965732992,0.425261,79167.0,79166.0,0.16226937]
[1743965733246,0.12,79167.0,79166.0,0.29971319]
[1743965733624,0.37263,79167.0,79166.0,0.16226937]
[1743965733833,0.385261,79167.0,79166.0,0.10010854]
[1743965733985,0.11823326,79167.0,79166.0,0.25018336]
[1743965735007,0.11745346,79167.0,79166.0,0.25018336]
[1743965735218,0.11745346,79167.0,79166.0,0.85966336]
[1743965735409,0.0479,79200.0,79187.0,0.012628]
[1743965735410,0.252525,79200.0,79187.0,0.012628]
[1743965735610,0.012626,79197.0,79188.0,0.12290297]
[1743965735833,0.22,79197.0,79193.0,0.265174]
[1743965736035,0.22,79197.0,79194.0,0.13744382]
[1743965736452,0.012626,79196.0,79194.0,0.13744382]
[1743965736658,0.11,79196.0,79194.0,0.13744382]
[1743965736867,0.11,79196.0,79195.0,0.01454085]
[1743965737083,0.11,79196.0,79167.0,0.025]
[1743965737084,0.012629,79177.0,79166.0,0.4132]
[1743965737304,0.012633,79156.0,79152.0,1.1033843]
[1743965737502,0.012633,79156.0,79152.0,1.09132]
[1743965737503,0.012633,79153.0,79152.0,1.09132]
[1743965737730,0.11,79153.0,79137.0,0.06216083]
[1743965737921,0.11,79153.0,79150.0,0.0999719]
[1743965738151,0.11,79153.0,79151.0,0.22287487]
[1743965738379,0.11,79153.0,79152.0,0.38821397]
[1743965738608,0.11,79153.0,79152.0,0.40275482]
[1743965738841,0.122633,79153.0,79152.0,0.12903961]
[1743965739061,0.11,79153.0,79152.0,0.24164451]
[1743965739240,0.11,79153.0,79152.0,0.22901151]
[1743965739540,0.11,79153.0,79152.0,0.24164451]
[1743965739746,0.11,79153.0,79152.0,0.59618536]
[1743965739914,0.11,79153.0,79152.0,0.59018536]
[1743965740328,0.11,79153.0,79152.0,0.86446536]
[1743965740671,0.012632,79163.0,79154.0,0.01454085]
[1743965740954,0.265301,79155.0,79154.0,0.12290297]
[1743965741156,0.435301,79155.0,79154.0,0.22287487]
[1743965741432,0.182633,79155.0,79154.0,0.22287487]
[1743965741662,0.17,79155.0,79154.0,0.22287487]
[1743965741886,0.182633,79155.0,79154.0,0.22287487]
[1743965742349,0.182633,79155.0,79154.0,0.0999719]
[1743965742801,0.252734,79135.0,79132.0,0.01212587]
[1743965743028,0.252734,79135.0,79115.0,0.534633]
[1743965743029,0.012638,79125.0,79115.0,0.534633]
[1743965743262,0.265364,79137.0,79125.0,0.012638]
[1743965743500,0.12,79161.0,79150.0,0.01454085]
[1743965743745,0.012633,79152.0,79134.0,0.012636]
[1743965743966,0.012635,79145.0,79137.0,0.0999719]
[1743965744189,0.25,79152.0,79147.0,0.01454085]
[1743965744420,0.22,79152.0,79149.0,0.01454085]
[1743965744631,0.22,79152.0,79151.0,0.01454085]
[1743965744855,0.22,79152.0,79151.0,0.13744382]
[1743965745523,0.22,79152.0,79151.0,0.1526045]
[1743965745749,0.22,79152.0,79151.0,0.23741572]
[1743965746205,0.012627,79192.0,79172.0,0.34]
[1743965746439,0.012627,79192.0,79166.0,0.35454085]
[1743965746440,0.01263,79174.0,79173.0,0.12290297]
[1743965746662,0.16,79174.0,79173.0,0.13744382]
[1743965746891,0.16,79174.0,79173.0,0.12290297]
[1743965747081,0.16,79174.0,79173.0,0.13744382]
[1743965747440,0.16,79174.0,79173.0,0.23741572]
[1743965747644,0.16,79174.0,79173.0,0.84265672]
[1743965747821,0.16,79174.0,79173.0,1.93397672]
[1743965748162,0.16,79174.0,79173.0,1.95200926]
[1743965748571,0.00013644,79180.0,79179.0,0.605221]
[1743965748822,0.00013644,79180.0,79179.0,0.90479755]
[1743965749023,0.02,79202.0,79201.0,0.61968885]
[1743965749226,0.1304547,79202.0,79201.0,1.17264455]
[1743965750060,0.1304547,79202.0,79201.0,1.19603488]
[1743965750599,0.12710876,79202.0,79201.0,1.19603488]
[1743965751578,0.01710876,79202.0,79201.0,1.19603488]
[1743965751996,0.01710876,79202.0,79201.0,1.20203488]
[1743965752413,0.0001671,79225.0,79201.0,1.20203488]
[1743965752414,1e-07,79225.0,79224.0,0.60507]
[1743965752626,1e-07,79225.0,79224.0,2.18434498]
[1743965752831,0.0001268,79234.0,79233.0,0.61958185]
[1743965753044,0.1202632,79234.0,79233.0,0.67558788]
[1743965753311,0.1202632,79234.0,79233.0,0.94066788]
[1743965753485,0.03111412,79234.0,79233.0,0.94066788]
[1743965753922,0.0001671,79247.0,79246.0,0.618448]
[1743965754125,0.2601671,79247.0,79246.0,0.92687403]
[1743965754682,0.2601671,79247.0,79246.0,0.93887031]
[1743965754877,0.012612,79285.0,79274.0,0.012614]
[1743965755088,0.24030315,79276.0,79275.0,0.47744382]
[1743965755304,0.24030315,79276.0,79275.0,0.49953349]
[1743965755772,0.24030315,79276.0,79275.0,0.5301361]
[1743965755977,0.24030315,79276.0,79275.0,0.5175221]
[1743965756204,0.24030315,79276.0,79275.0,0.5301361]
[1743965756439,0.24030315,79276.0,79275.0,0.61211939]
[1743965757131,0.00030315,79276.0,79275.0,0.61211939]
[1743965757355,0.00030315,79276.0,79275.0,0.61113753]
[1743965757572,0.012609,79304.0,79285.0,0.61940685]
[1743965757811,0.18053425,79286.0,79285.0,0.90444255]
[1743965758046,0.18053425,79286.0,79285.0,0.92783288]
[1743965758518,0.18053425,79286.0,79285.0,0.93946502]
[1743965759705,0.18053425,79286.0,79285.0,1.20430502]
[1743965759706,0.00053425,79286.0,79285.0,1.20430502]
[1743965759948,0.01,79286.0,79285.0,0.50215228]
[1743965760171,0.01,79286.0,79285.0,0.84347228]
[1743965760414,0.01,79286.0,79285.0,0.57835228]
[1743965760640,0.01,79286.0,79285.0,0.64842603]
[1743965760877,0.022612,79286.0,79285.0,0.64842603]
[1743965761134,0.274863,79286.0,79285.0,0.30842603]
[1743965761367,0.01,79286.0,79285.0,0.30852603]
[1743965762017,0.274863,79286.0,79285.0,0.30852603]
[1743965762232,0.01,79286.0,79285.0,0.30852603]
[1743965762427,0.01,79286.0,79285.0,0.66306688]
[1743965762764,0.0001669,79314.0,79307.0,0.01454085]
[1743965762979,0.24030302,79308.0,79307.0,0.30209811]
[1743965763180,0.25291202,79308.0,79307.0,0.2850357]
[1743965763358,0.24030302,79308.0,79307.0,0.33557588]
[1743965763557,0.24030302,79308.0,79307.0,0.67557588]
[1743965763760,0.24030302,79308.0,79307.0,0.92775988]
[1743965764344,0.24030302,79308.0,79307.0,0.94022628]
[1743965764545,0.12202614,79308.0,79307.0,0.97677692]
[1743965764757,0.012602,79350.0,79337.0,0.01454085]
[1743965764964,0.00013617,79344.0,79339.0,0.01454085]
[1743965765160,0.012603,79342.0,79341.0,0.01454085]
[1743965765390,0.272603,79342.0,79341.0,0.22287487]
[1743965765587,0.252079,79340.0,79337.0,0.06216083]
[1743965765862,0.25,79340.0,79337.0,0.17667358]
[1743965766083,0.25,79340.0,79339.0,0.61922685]
[1743965766296,0.25,79340.0,79339.0,0.86513774]
[1743965766543,0.25,79340.0,79339.0,0.62460638]
[1743965766747,0.262603,79340.0,79339.0,0.61200238]
[1743965766917,0.262603,79340.0,79339.0,0.13455856]
[1743965767120,0.012604,79338.0,79337.0,5.6e-07]
[1743965767404,0.262604,79338.0,79337.0,0.22287543]
[1743965767604,0.26250099,79338.0,79337.0,0.09997246]
[1743965768000,0.26250099,79338.0,79337.0,0.22287543]
[1743965768204,0.51458699,79338.0,79337.0,0.29957711]
[1743965768400,0.51458699,79338.0,79337.0,0.09997246]
[1743965768513,0.264719,79329.0,79328.0,0.06216083]
[1743965768723,0.222605,79329.0,79328.0,0.19960465]
[1743965769164,0.222605,79329.0,79328.0,0.1850638]
[1743965769383,0.222605,79329.0,79328.0,0.06216083]
[1743965769925,0.21,79329.0,79328.0,0.45172165]
[1743965770136,0.012599,79370.0,79334.0,0.005]
[1743965770340,0.24013617,79344.0,79343.0,0.46290297]
[1743965770555,0.24013617,79344.0,79343.0,0.5250638]
[1743965770748,0.24013617,79344.0,79343.0,0.19960465]
[1743965771341,0.24013617,79344.0,79343.0,1.64148765]
[1743965771543,0.24013617,79344.0,79343.0,1.92296765]
[1743965771783,0.24013617,79344.0,79343.0,1.91036465]
[1743965772224,0.24013617,79344.0,79343.0,1.92296765]
[1743965772513,0.24013617,79344.0,79343.0,1.92306765]
[1743965772793,0.24013617,79344.0,79343.0,1.62898465]
[1743965773264,0.24013617,79344.0,79343.0,1.89365765]
[1743965773738,0.24013617,79344.0,79343.0,1.74155955]
[1743965773981,0.25273917,79344.0,79343.0,1.3744157]
[1743965774233,0.50480517,79344.0,79343.0,0.16223273]
[1743965774498,0.24013617,79344.0,79343.0,0.2851357]
[1743965774752,0.24013617,79344.0,79343.0,0.2845781]
[1743965775238,0.25273917,79344.0,79343.0,0.22297487]
[1743965775480,0.24013617,79344.0,79343.0,0.23751572]
[1743965775717,0.24013617,79344.0,79343.0,0.22297487]
[1743965775947,0.25273917,79344.0,79343.0,0.22297487]
[1743965776254,0.2500672,79344.0,79343.0,0.1000719]
[1743965777205,0.2500672,79344.0,79343.0,0.0532719]
[1743965777467,0.012607,79319.0,79307.0,0.0001]
[1743965777754,0.26479,79308.0,79307.0,0.0001]
[1743965778040,0.52479,79308.0,79307.0,0.1000719]
[1743965778498,0.52479,79308.0,79307.0,0.0175461]
[1743965778712,0.98769297,79308.0,79307.0,0.0999719]
[1743965778929,0.264813,79301.0,79300.0,0.0509379]
[1743965779132,0.264813,79301.0,79257.0,1.08896]
[1743965779133,0.264863,79286.0,79257.0,1.08896]
[1743965779344,0.264897,79276.0,79240.0,0.28108]
[1743965779520,0.519897,79276.0,79258.0,0.02329616]
[1743965779752,0.264967,79255.0,79254.0,0.02329616]
[1743965779959,0.494967,79255.0,79254.0,0.02329616]
[1743965780168,0.23,79255.0,79254.0,0.10513074]
[1743965780374,0.264829,79297.0,79283.0,0.012613]
[1743965780580,0.00112,79286.0,79284.0,0.12290297]
[1743965780821,0.09112,79286.0,79285.0,0.27940685]
[1743965781024,0.09112,79286.0,79285.0,0.40230982]
[1743965781252,0.09112,79286.0,79285.0,0.16076719]
[1743965781458,0.09112,79286.0,79285.0,0.14622634]
[1743965782075,0.09157352,79286.0,79285.0,0.14622634]
[1743965782284,0.10418552,79286.0,79285.0,0.02332337]
[1743965782434,0.22708849,79286.0,79285.0,0.02332337]
[1743965782638,0.012617,79258.0,79253.0,0.0003348]
[1743965782841,0.264967,79255.0,79254.0,0.0001]
[1743965783021,0.08,79255.0,79254.0,0.0001]
[1743965783225,0.092617,79255.0,79254.0,0.0001]
[1743965783994,0.08,79255.0,79254.0,0.00023617]
[1743965784413,0.08,79255.0,79254.0,0.12313914]
[1743965784601,0.08,79255.0,79254.0,0.12323914]
[1743965784602,0.072,79255.0,79254.0,0.12323914]
[1743965784811,0.084617,79255.0,79254.0,0.00033617]
[1743965785649,0.012618,79247.0,79246.0,9.7e-07]
[1743965785856,0.894993,79247.0,79246.0,0.00013719]
[1743965786271,0.26507,79224.0,79205.0,0.0003332]
[1743965786491,0.52507,79224.0,79223.0,0.10522089]
[1743965788151,0.52507,79224.0,79223.0,3.5e-07]
[1743965788356,0.017622,79223.0,79222.0,9.5e-07]
[1743965788697,0.75052497,79223.0,79222.0,3.5e-07]
[1743965788901,0.75052497,79223.0,79205.0,2e-07]
[1743965788902,0.265131,79206.0,79205.0,2e-07]
[1743965789091,0.525131,79206.0,79205.0,2e-07]
[1743965789303,0.65303397,79206.0,79205.0,2e-07]
[1743965789431,0.270143,79202.0,79201.0,0.0001]
[1743965789633,0.64304597,79202.0,79201.0,0.0001]
[1743965789978,0.515143,79202.0,79201.0,0.0001]
[1743965792648,0.515143,79202.0,79174.0,0.0003332]
[1743965792649,0.265234,79175.0,79174.0,0.0003332]
[1743965792854,0.325234,79175.0,79174.0,0.12323617]
[1743965793032,0.312604,79175.0,79174.0,0.12323617]
[1743965793234,0.325234,79175.0,79174.0,0.12323617]
[1743965793458,0.312604,79175.0,79174.0,0.12323617]
[1743965793657,0.06,79175.0,79174.0,0.13777702]
[1743965793854,0.06,79175.0,79174.0,0.13823172]
[1743965794068,0.06,79175.0,79174.0,0.15086172]
[1743965794269,0.06,79175.0,79174.0,0.49338755]
[1743965794482,0.252472,79217.0,79174.0,0.49338755]
[1743965794483,0.012626,79201.0,79180.0,0.352629]
[1743965794692,0.265209,79183.0,79182.0,0.01454085]
[1743965794896,0.315207,79183.0,79182.0,0.12290297]
[1743965795310,0.05,79183.0,79182.0,0.14993476]
[1743965795520,0.05,79183.0,79182.0,0.48993476]
[1743965795736,0.05,79183.0,79182.0,0.51186055]
[1743965795924,0.252519,79202.0,79190.0,0.34]
[1743965796128,0.1,79202.0,79196.0,0.01454085]
[1743965796345,0.1,79202.0,79197.0,0.12290297]
[1743965796550,0.1,79202.0,79199.0,0.252528]
[1743965796756,0.1,79202.0,79201.0,0.01454085]
[1743965796949,0.1,79202.0,79201.0,0.13744382]
[1743965797802,0.112625,79202.0,79201.0,0.12290297]
[1743965798138,0.112625,79202.0,79196.0,0.01259094]
[1743965798139,0.252534,79197.0,79196.0,0.01259094]
[1743965798341,0.1,79197.0,79196.0,0.13549391]
[1743965798519,0.1,79197.0,79196.0,0.15003476]
[1743965799056,0.112626,79197.0,79196.0,0.15003476]
[1743965799258,0.36516,79197.0,79196.0,0.15003476]
[1743965799465,0.1,79197.0,79196.0,0.15003476]
[1743965800069,0.1,79197.0,79196.0,0.16266076]
[1743965800670,0.04681693,79197.0,79196.0,0.50518581]
[1743965800894,0.265067,79226.0,79212.0,0.35454085]
[1743965801093,0.00013593,79221.0,79215.0,0.01454085]
[1743965801315,0.05013593,79221.0,79217.0,0.01454085]
[1743965801493,0.05013593,79221.0,79212.0,0.34701417]
[1743965801494,0.252481,79214.0,79212.0,0.07409417]
[1743965801696,0.012624,79213.0,79212.0,0.19699714]
[1743965801925,0.012624,79213.0,79197.0,0.252531]
[1743965801926,0.012626,79197.0,79196.0,0.0001]
[1743965802126,0.53516,79197.0,79196.0,0.0001]
[1743965802339,0.53516,79197.0,79196.0,1e-06]
[1743965802486,0.99806297,79197.0,79196.0,1e-06]
[1743965802688,0.265234,79175.0,79169.0,0.0003346]
[1743965802887,0.505234,79175.0,79169.0,0.0003346]
[1743965803420,0.24,79175.0,79174.0,0.12333617]
[1743965803627,0.24,79175.0,79174.0,0.12379087]
[1743965804069,0.24,79175.0,79174.0,0.13833172]
[1743965805216,0.24,79175.0,79174.0,0.13843172]
[1743965805781,0.24,79175.0,79174.0,0.47843172]
[1743965805981,0.24,79175.0,79174.0,0.75797098]
[1743965806166,0.505234,79175.0,79174.0,0.12389087]
[1743965806627,0.24,79175.0,79174.0,0.12389087]
[1743965806901,0.24,79175.0,79174.0,0.40366972]
[1743965807023,0.24,79175.0,79174.0,0.40376972]
[1743965807220,0.24,79175.0,79174.0,0.13853172]
[1743965807426,0.24,79175.0,79174.0,0.15116172]
[1743965807687,0.265108,79213.0,79200.0,0.012626]
[1743965807908,0.265108,79213.0,79198.0,0.265155]
[1743965807909,0.445108,79213.0,79202.0,0.01454085]
[1743965808098,0.18,79213.0,79204.0,0.35454085]
[1743965808330,0.18,79213.0,79212.0,0.15006782]
[1743965808512,0.18,79213.0,79212.0,0.55167105]
[1743965808719,0.0001676,79234.0,79212.0,0.55167105]
[1743965808720,0.0001676,79234.0,79226.0,0.265063]
[1743965808862,0.1201676,79234.0,79226.0,0.265063]
[1743965809060,0.1201676,79234.0,79212.0,0.53904705]
[1743965809061,0.252477,79215.0,79212.0,0.12290297]
[1743965809264,0.252477,79215.0,79200.0,0.0001]
[1743965809265,0.012624,79208.0,79200.0,0.0001]
[1743965809470,0.07,79208.0,79205.0,0.01454085]
[1743965809668,0.07,79208.0,79206.0,0.12290297]
[1743965809873,0.07,79208.0,79207.0,0.74257082]
[1743965810329,0.252445,79226.0,79218.0,0.34]
[1743965810541,0.07,79226.0,79222.0,0.01454085]
[1743965810745,0.07,79226.0,79223.0,0.12290297]
[1743965810950,0.012624,79209.0,79204.0,0.07406178]
[1743965811125,0.06,79209.0,79207.0,0.0001]
[1743965811325,0.06,79209.0,79208.0,0.46290297]
[1743965812109,0.265123,79208.0,79207.0,0.0001]
[1743965812305,0.09,79208.0,79207.0,0.0001]
[1743965812506,0.09,79208.0,79207.0,0.15016882]
[1743965812705,0.09,79208.0,79207.0,0.13754382]
[1743965813113,0.0899,79208.0,79207.0,0.15016882]
[1743965813313,0.0899,79208.0,79207.0,0.49016882]
[1743965814207,0.0001676,79228.0,79222.0,0.012622]
[1743965814423,0.18013593,79226.0,79223.0,0.13744382]
[1743965814565,0.18013593,79226.0,79223.0,0.16094586]
[1743965814770,0.43257993,79226.0,79224.0,0.01175109]
[1743965814973,0.012622,79225.0,79224.0,0.01175109]
[1743965815168,0.09,79225.0,79224.0,0.01175109]
[1743965815839,0.102622,79225.0,79224.0,0.01175109]
[1743965816032,0.09,79225.0,79224.0,0.01175109]
[1743965817214,0.09,79225.0,79224.0,0.16181691]
[1743965817465,0.09,79225.0,79224.0,0.50181691]
[1743965818208,0.09,79225.0,79224.0,0.48919491]
[1743965818419,0.09,79225.0,79224.0,0.01175109]
[1743965818846,0.342445,79225.0,79224.0,0.01175109]
[1743965819047,0.355067,79225.0,79224.0,0.01175109]
[1743965819258,0.48296997,79225.0,79224.0,0.01185109]
[1743965819426,0.52846997,79225.0,79224.0,0.01185109]
[1743965819807,0.52846997,79225.0,79183.0,0.2652]
[1743965819808,0.265148,79201.0,79189.0,0.01258704]
[1743965820018,0.525148,79201.0,79175.0,0.06160323]
[1743965820150,0.64805097,79201.0,79174.0,0.0006332]
[1743965820351,0.64805097,79201.0,79174.0,0.0132632]
[1743965820574,0.64805097,79201.0,79179.0,0.01226546]
[1743965821061,1.03825097,79201.0,79174.0,0.0006332]
[1743965821288,0.012629,79181.0,79174.0,0.0006332]
[1743965821493,0.272629,79181.0,79174.0,0.0006332]
[1743965821767,0.265233,79176.0,79174.0,0.0006332]
[1743965821894,0.415233,79176.0,79174.0,0.0006332]
[1743965822100,0.15,79176.0,79174.0,0.0132632]
[1743965822401,0.15,79176.0,79174.0,0.0006332]
[1743965823395,0.01263,79175.0,79174.0,0.0006332]
[1743965823586,0.405234,79175.0,79174.0,0.0006332]
[1743965823973,0.14,79175.0,79174.0,0.02423812]
[1743965824335,0.15263,79175.0,79174.0,0.02423812]
[1743965824590,0.87889297,79175.0,79174.0,1.2e-07]
[1743965824793,0.257636,79165.0,79164.0,2e-07]
[1743965825097,0.257636,79165.0,79164.0,0.0004549]
[1743965825098,0.65316997,79165.0,79164.0,0.0004549]
[1743965825233,0.64816997,79165.0,79164.0,0.0004549]
[1743965825446,0.65316997,79165.0,79164.0,0.0004549]
[1743965825982,0.64816997,79165.0,79164.0,0.0004549]
[1743965826190,0.26,79165.0,79164.0,0.0004549]
[1743965826611,0.272631,79165.0,79164.0,0.0004549]
[1743965826752,0.26,79165.0,79164.0,0.0004549]
[1743965827173,0.26,79165.0,79164.0,0.15053072]
[1743965827453,0.26,79165.0,79164.0,0.55213395]
[1743965827687,0.012625,79206.0,79185.0,0.012628]
[1743965827938,0.012629,79177.0,79164.0,0.0004549]
[1743965828136,0.012629,79177.0,79165.0,0.12290297]
[1743965828137,0.265232,79176.0,79165.0,0.12290297]
[1743965828331,0.11,79176.0,79167.0,0.252629]
[1743965828532,0.11,79176.0,79175.0,0.01263]
[1743965828736,0.11,79176.0,79175.0,0.15007382]
[1743965828946,0.11,79176.0,79175.0,0.13744382]
[1743965829171,0.01263,79171.0,79158.0,0.06160323]
[1743965829412,0.01263,79171.0,79157.0,0.265293]
[1743965829413,0.06,79171.0,79165.0,0.12290297]
[1743965829618,0.06,79171.0,79161.0,0.012632]
[1743965829861,0.06,79171.0,79163.0,0.012632]
[1743965830062,0.06,79171.0,79170.0,0.265251]
[1743965830274,0.06,79171.0,79170.0,0.38815397]
[1743965830596,0.06,79171.0,79170.0,0.13744382]
[1743965830800,0.07263,79171.0,79164.0,0.0004549]
[1743965831239,0.252631,79167.0,79164.0,0.0004549]
[1743965831476,0.012631,79165.0,79164.0,0.0004549]
[1743965831725,0.282631,79165.0,79164.0,0.0004549]
[1743965832108,0.27,79165.0,79164.0,0.0004549]
[1743965833154,0.40553397,79165.0,79164.0,0.0004549]
[1743965834385,0.27,79165.0,79164.0,0.0004549]
[1743965834587,0.282631,79165.0,79164.0,0.0004549]
[1743965834799,0.40553397,79165.0,79164.0,0.0004549]
[1743965835514,0.282631,79165.0,79164.0,0.0004549]
[1743965835723,0.27,79165.0,79164.0,0.0004549]
[1743965836208,0.27,79165.0,79164.0,0.13598987]
[1743965836447,0.27,79165.0,79164.0,0.46477395]
[1743965837014,0.27,79165.0,79164.0,0.0004549]
[1743965838482,0.27,79165.0,79164.0,0.0130869]
[1743965839125,0.27,79165.0,79164.0,0.13598987]
[1743965839301,0.27,79165.0,79164.0,0.15053072]
[1743965839704,0.27,79165.0,79164.0,0.47789872]
[1743965840112,0.27,79165.0,79164.0,0.74317072]
[1743965840590,0.27,79165.0,79164.0,0.0004549]
[1743965840765,0.535267,79165.0,79164.0,0.0004549]
[1743965842321,0.27,79165.0,79164.0,0.2657269]
[1743965842521,0.27,79165.0,79164.0,0.40317072]
[1743965842931,0.27,79165.0,79164.0,0.74317072]
[1743965843260,0.27,79165.0,79164.0,0.80477395]
[1743965843492,0.27,79165.0,79164.0,0.74317072]
[1743965844249,0.27,79165.0,79164.0,0.12335787]
[1743965844417,0.27,79165.0,79164.0,0.0004549]
[1743965844877,0.27,79165.0,79164.0,0.2530949]
[1743965845076,0.27,79165.0,79164.0,0.40317072]
[1743965845279,0.27,79165.0,79164.0,0.0004549]
[1743965845497,0.282631,79165.0,79164.0,0.0004549]
[1743965846085,0.40553397,79165.0,79164.0,0.0004549]
[1743965846535,0.282631,79165.0,79164.0,0.0004549]
[1743965846759,0.415531,79165.0,79164.0,0.0004549]
[1743965846970,0.282631,79165.0,79164.0,0.0004549]
[1743965847389,0.27,79165.0,79164.0,0.0004549]
[1743965847856,0.535267,79165.0,79164.0,0.0004549]
[1743965848497,0.539867,79165.0,79164.0,0.0004549]
[1743965848748,0.66276997,79165.0,79164.0,0.0004549]
[1743965849460,0.2746,79165.0,79164.0,0.0004549]
[1743965849707,0.539867,79165.0,79164.0,0.0004549]
[1743965849899,0.66276997,79165.0,79164.0,0.0004549]
[1743965850250,0.66776997,79165.0,79164.0,0.0004549]
[1743965850830,0.66776997,79165.0,79142.0,0.0003352]
[1743965850831,0.265338,79144.0,79142.0,0.0003352]
[1743965851037,0.67824097,79144.0,79143.0,0.00046944]
[1743965851311,0.357635,79143.0,79142.0,6.4e-07]
[1743965851471,0.77053797,79143.0,79142.0,0.00013695]
[1743965852313,0.43053797,79143.0,79142.0,0.00013695]
[1743965852713,0.302635,79143.0,79142.0,0.00013695]
[1743965853116,0.77053797,79143.0,79142.0,0.00013695]
[1743965854463,0.76553797,79143.0,79142.0,0.00013695]
[1743965855097,1.02053797,79143.0,79142.0,0.00013695]
[1743965855304,0.77053797,79143.0,79142.0,0.00013695]
[1743965856291,0.76553797,79143.0,79142.0,0.00013695]
[1743965857037,0.77053797,79143.0,79142.0,0.00013695]
[1743965857449,0.610375,79133.0,79132.0,0.0003352]
[1743965857601,0.265429,79117.0,79116.0,4e-07]
[1743965857822,0.252809,79111.0,79094.0,0.0003354]
[1743965857975,0.505449,79111.0,79094.0,0.0003354]
[1743965858473,0.97335197,79111.0,79110.0,4e-07]
[1743965858674,0.96835197,79111.0,79110.0,4e-07]
[1743965858877,0.9684877,79111.0,79110.0,4e-07]
[1743965859268,1.2286877,79111.0,79110.0,4e-07]
[1743965859499,1.2336877,79111.0,79110.0,4e-07]
[1743965859911,0.50033573,79111.0,79110.0,4e-07]
[1743965860149,0.6358787,79111.0,79110.0,4e-07]
[1743965860354,0.6408787,79111.0,79110.0,4e-07]
[1743965860560,0.9808787,79111.0,79110.0,4e-07]
[1743965860971,0.005,79098.0,79074.0,0.0003336]
[1743965861195,0.407143,79094.0,79093.0,4e-07]
[1743965861395,0.83504597,79094.0,79093.0,4e-07]
[1743965861973,0.81004597,79094.0,79071.0,0.0003338]
[1743965862158,0.012648,79060.0,79051.0,0.01987914]
[1743965862358,0.265638,79055.0,79051.0,0.01987914]
[1743965862533,0.08,79055.0,79051.0,0.01987914]
[1743965862939,0.252991,79054.0,79051.0,0.01987914]
[1743965863148,0.332992,79054.0,79051.0,0.01987914]
[1743965863357,0.012649,79052.0,79051.0,0.01987914]
[1743965863560,0.122649,79052.0,79051.0,0.02033429]
[1743965863985,0.11,79052.0,79051.0,0.02033429]
[1743965864518,0.11,79052.0,79051.0,0.03298429]
[1743965864720,0.11,79052.0,79051.0,0.02033429]
[1743965864883,0.122649,79052.0,79051.0,0.02033429]
[1743965865330,0.24555197,79052.0,79051.0,0.02033429]
[1743965865527,0.122649,79052.0,79051.0,0.02033429]
[1743965866396,0.24555197,79052.0,79051.0,0.02033429]
[1743965866922,0.012651,79043.0,79042.0,0.0001]
[1743965867163,0.73055397,79043.0,79042.0,5.7e-07]
[1743965867369,0.73055397,79043.0,79019.0,0.0003354]
[1743965867370,0.265755,79020.0,79019.0,0.0003354]
[1743965867572,0.785755,79020.0,79019.0,0.000472]
[1743965867799,0.62865797,79020.0,79019.0,0.000472]
[1743965868202,0.97365797,79020.0,79019.0,1e-06]
[1743965868401,0.98615208,79020.0,79019.0,1e-06]
[1743965868780,0.98615208,79020.0,79004.0,0.009031]
[1743965868781,0.253142,79007.0,79004.0,0.009031]
[1743965868975,0.27,79007.0,79004.0,0.00948668]
[1743965869978,0.012657,79005.0,79004.0,0.00948668]
[1743965870089,0.292657,79005.0,79004.0,0.00948668]
[1743965870757,0.28,79005.0,79004.0,0.00948668]
[1743965870940,0.292657,79005.0,79004.0,0.00948668]
[1743965871162,0.533148,79005.0,79004.0,0.00948668]
[1743965871663,0.545805,79005.0,79004.0,0.00948668]
[1743965871905,0.545805,79005.0,79004.0,0.00958668]
[1743965872349,0.265815,79002.0,79001.0,6.8e-07]
[1743965872549,0.265828,78998.0,78997.0,8.8e-07]
[1743965872700,0.66873097,78998.0,78997.0,0.00013748]
[1743965873315,0.545828,78998.0,78997.0,0.00013748]
[1743965873525,0.66873097,78998.0,78997.0,0.00013748]
[1743965874108,0.53317,78998.0,78997.0,0.00013748]
[1743965874309,0.66873097,78998.0,78997.0,0.00023748]
[1743965874597,1.00873097,78998.0,78997.0,4.8e-07]
[1743965875357,0.545828,78998.0,78997.0,4.8e-07]
[1743965875758,0.28,78998.0,78997.0,4.8e-07]
[1743965875917,0.292658,78998.0,78997.0,4.8e-07]
[1743965876454,0.292658,78998.0,78997.0,0.00010048]
[1743965877024,0.2755281,78998.0,78997.0,0.00010048]
[1743965877223,0.39843107,78998.0,78997.0,0.00010048]
[1743965877863,0.2755281,78998.0,78997.0,0.00010048]
[1743965878745,0.2628701,78998.0,78997.0,0.00010048]
[1743965879257,0.2628701,78998.0,78997.0,0.38893545]
[1743965879465,0.2628701,78998.0,78997.0,0.4034763]
[1743965880104,0.2628701,78998.0,78997.0,0.7434763]
[1743965880300,0.012652,79038.0,79021.0,0.265751]